bitfinex/quotes_ETHUSD_20250730
["timestamp","ask_amount","ask_price","bid_price","bid_amount"]
[1753863937432,0.24452035,3814.3,3814.0,0.1312]
[1753863937702,0.24452067,3814.2,3813.9,5.0055]
[1753863937867,0.002,3814.4,3814.1,3.57640358]
[1753863938033,0.24654323,3814.4,3814.1,3.70760358]
[1753863938382,0.24454323,3814.3,3814.2,0.4546]
[1753863939098,0.002,3814.4,3814.2,0.4546]
[1753863939387,0.002,3814.4,3814.3,4.5096]
[1753863939686,0.002,3814.4,3814.3,4.055]
[1753863939985,0.002,3814.4,3814.3,4.054]
[1753863941195,0.002,3814.4,3814.3,0.4546]
[1753863941409,0.002,3814.4,3814.3,4.5086]
[1753863942293,0.002,3814.5,3814.4,2.62164429]
[1753863942493,0.002,3814.5,3814.4,3.87634429]
[1753863942791,0.002,3814.5,3814.4,4.33094429]
[1753863942974,0.002,3814.5,3814.4,8.38494429]
[1753863943788,0.002,3814.5,3814.4,4.33094429]
[1753863944097,0.002,3814.5,3814.4,8.38394429]
[1753863948759,0.002,3814.5,3814.4,3.40724429]
[1753863949070,0.002,3814.5,3814.4,11.03564787]
[1753863949594,0.002,3814.5,3814.4,11.50474787]
[1753863952596,0.002,3814.8,3814.7,3.43473812]
[1753863952897,0.002,3814.8,3814.7,10.6085417]
[1753863953195,0.002,3814.8,3814.7,11.5322417]
[1753863957116,0.002,3814.8,3814.7,11.0631417]
[1753863957265,0.002,3814.8,3814.7,3.43473812]
[1753863957602,0.9124,3814.8,3814.7,4.051]
[1753863957798,0.9124,3814.8,3814.5,0.7785]
[1753863958003,0.9104,3814.7,3814.5,0.7785]
[1753863958188,0.002,3814.8,3814.6,4.051]
[1753863958376,0.002,3814.8,3814.2,0.7872]
[1753863958565,0.002,3814.8,3814.3,4.051]
[1753863958771,0.9104,3814.7,3814.4,4.051]
[1753863958972,0.002,3814.8,3814.4,4.051]
[1753863959195,0.9104,3814.6,3814.4,4.051]
[1753863959366,0.002,3814.8,3814.4,4.051]
[1753863959706,0.9104,3814.7,3814.5,0.1312]
[1753863959870,0.002,3814.8,3814.6,4.05]
[1753863960207,0.002,3814.8,3814.6,4.1812]
[1753863960570,0.8939,3814.7,3814.6,4.1812]
[1753863960767,0.8939,3814.7,3814.6,0.1312]
[1753863961289,0.8939,3814.7,3814.6,4.1812]
[1753863962329,0.002,3814.8,3814.6,7.30300358]
[1753863962484,0.002,3814.8,3814.6,7.78310358]
[1753863962684,0.002,3814.8,3814.7,1.2494]
[1753863962907,0.002,3814.8,3814.6,0.1312]
[1753863963112,0.8959,3814.8,3814.7,4.05]
[1753863964132,0.442,3814.8,3814.7,4.05]
[1753863964299,0.8959,3814.8,3814.7,4.05]
[1753863964495,0.8959,3814.8,3814.6,0.1312]
[1753863964695,0.002,3814.8,3814.7,4.05]
[1753863965238,1.676,3814.8,3814.6,4.05]
[1753863965526,0.8939,3814.7,3814.6,4.05]
[1753863966194,0.8959,3814.7,3814.6,4.05]
[1753863966820,0.8959,3814.7,3814.4,0.001]
[1753863967000,0.8939,3814.6,3814.5,4.05]
[1753863970301,0.002,3814.7,3814.5,4.05]
[1753863970497,0.8959,3814.7,3814.5,4.05]
[1753863971496,0.002,3814.7,3814.5,4.05]
[1753863972435,0.8939,3814.6,3814.5,4.05]
[1753863973002,0.44,3814.6,3814.5,4.05]
[1753863974129,0.8939,3814.6,3814.5,4.05]
[1753863974638,0.44,3814.6,3814.5,4.05]
[1753863975028,0.002,3814.7,3814.5,4.1812]
[1753863975342,0.68650459,3814.7,3814.5,4.1812]
[1753863975640,0.002,3814.7,3814.5,4.1812]
[1753863975936,0.002,3814.7,3814.5,4.6613]
[1753863976310,0.002,3814.7,3814.6,2.62150684]
[1753863976514,0.002,3814.7,3814.6,0.4801]
[1753863976715,0.002,3814.7,3814.5,6.80275538]
[1753863976916,0.002,3814.7,3814.5,7.28285538]
[1753863978258,0.002,3814.7,3814.5,6.80275538]
[1753863978536,0.002,3814.7,3814.6,0.4801]
[1753863978740,0.002,3814.7,3814.6,3.1278219]
[1753863979101,0.24647624,3814.7,3814.6,3.1278219]
[1753863979546,0.002,3814.7,3814.6,4.3759219]
[1753863979840,0.002,3814.7,3814.6,4.34970684]
[1753863980208,0.002,3814.7,3814.6,4.3759219]
[1753863980404,0.002,3814.7,3814.6,4.34970684]
[1753863980668,0.002,3814.7,3814.6,4.3759219]
[1753863980805,0.002,3814.7,3814.6,7.3759219]
[1753863981006,0.002,3814.7,3814.6,7.34970684]
[1753863982513,0.002,3814.7,3814.6,11.39770684]
[1753863983109,0.002,3814.7,3814.6,7.34970684]
[1753863983308,0.002,3814.7,3814.6,11.39670684]
[1753863984068,0.002,3814.7,3814.6,6.89520684]
[1753863984339,0.002,3814.7,3814.6,11.39670684]
[1753863985761,0.002,3814.7,3814.6,15.62670684]
[1753863986847,1.13838932,3815.5,3814.6,11.12519006]
[1753863987051,0.8939,3815.4,3815.0,2.62116533]
[1753863987357,0.1312,3815.8,3815.3,0.1312]
[1753863987581,0.1312,3815.8,3815.4,4.047]
[1753863987856,0.1312,3815.8,3815.3,0.1312]
[1753863988009,0.8939,3815.7,3815.4,4.047]
[1753863988210,0.1312,3815.8,3815.4,4.047]
[1753863988416,0.8939,3815.6,3815.4,4.047]
[1753863988649,0.8939,3815.5,3815.4,4.047]
[1753863988813,0.1312,3815.8,3815.4,4.047]
[1753863989013,0.8939,3815.7,3815.4,4.047]
[1753863989243,0.8939,3815.6,3815.4,4.047]
[1753863989547,0.8939,3815.5,3815.4,4.047]
[1753863989750,0.7594,3815.5,3815.4,4.047]
[1753863989955,1.6533,3815.5,3815.4,4.047]
[1753863990546,1.6533,3815.5,3815.4,4.046]
[1753863991413,1.6533,3815.5,3815.3,0.1312]
[1753863991624,0.7594,3815.5,3815.4,4.046]
[1753863992226,1.2256,3815.5,3815.4,4.046]
[1753863992422,1.6855,3815.5,3815.3,0.1312]
[1753863992665,0.9261,3815.4,3815.0,0.1312]
[1753863992822,0.9261,3815.4,3815.1,4.046]
[1753863993160,0.9261,3815.3,3815.1,4.046]
[1753863993362,0.8906,3815.5,3815.1,4.046]
[1753863993532,0.9261,3815.2,3815.1,4.046]
[1753863994118,0.4662,3815.2,3815.1,4.046]
[1753863994965,0.9261,3815.2,3815.1,4.046]
[1753863995269,0.9261,3815.2,3815.0,0.1312]
[1753863995459,0.8906,3815.5,3815.1,4.046]
[1753863995757,0.8906,3815.5,3815.2,4.046]
[1753863996126,0.9261,3815.4,3815.2,4.046]
[1753863996324,0.9261,3815.3,3815.2,4.046]
[1753863996832,0.4662,3815.3,3815.2,4.046]
[1753863997023,0.8906,3815.5,3815.2,4.046]
[1753863997229,0.002,3815.8,3815.3,0.4728]
[1753863997425,0.002,3815.8,3815.5,3.12180358]
[1753863997776,0.002,3815.8,3815.7,0.1312]
[1753864000876,0.4682,3815.8,3815.7,0.1312]
[1753864001078,0.9281,3815.8,3815.7,4.1762]
[1753864001378,0.4682,3815.8,3815.7,4.1762]
[1753864002369,0.002,3815.8,3815.7,4.1762]
[1753864003582,0.002,3815.8,3815.7,7.77080358]
[1753864005244,0.002,3815.8,3815.7,4.1762]
[1753864006982,0.002,3815.8,3815.2,0.8071]
[1753864006983,0.9281,3815.8,3815.2,0.8071]
[1753864007185,1.1707068,3815.7,3815.3,4.044]
[1753864007476,1.3019068,3815.6,3815.4,4.044]
[1753864007677,0.1312,3815.6,3815.5,4.044]
[1753864008380,0.84205662,3815.6,3815.5,4.044]
[1753864008580,0.24465662,3815.6,3815.5,4.044]
[1753864008751,0.24465662,3815.6,3815.5,10.39064133]
[1753864009947,0.24465662,3815.7,3815.5,4.648]
[1753864010147,0.24465662,3815.6,3815.5,4.648]
[1753864010382,0.002,3815.8,3815.5,7.26888108]
[1753864010557,0.002,3815.8,3815.7,0.1312]
[1753864010752,0.002,3815.8,3815.7,4.1742]
[1753864010947,0.24686789,3815.8,3815.7,4.1742]
[1753864011142,0.002,3815.8,3815.7,4.1742]
[1753864011586,0.24686789,3815.8,3815.7,4.1742]
[1753864011784,1.17296789,3815.8,3815.7,4.1742]
[1753864012799,1.17301058,3815.8,3815.7,4.1742]
[1753864013791,0.24691058,3815.8,3815.7,4.1742]
[1753864015353,1.17301058,3815.8,3815.7,4.1742]
[1753864016355,0.71311058,3815.8,3815.7,4.1742]
[1753864016555,0.24691058,3815.8,3815.7,4.1742]
[1753864018396,1.17301058,3815.8,3815.7,4.1742]
[1753864018992,1.17301058,3815.8,3815.7,0.1312]
[1753864019181,1.17301058,3815.8,3815.7,4.042]
[1753864019353,1.17301058,3815.8,3815.4,0.1322]
[1753864019354,0.8019,3815.7,3815.4,0.1322]
[1753864019558,1.8592,3815.7,3815.5,4.042]
[1753864019759,0.9261,3815.6,3815.5,4.042]
[1753864022611,1.17107844,3815.6,3815.5,4.042]
[1753864026066,1.17107844,3815.6,3815.4,0.001]
[1753864026262,0.9331,3815.7,3815.5,4.041]
[1753864026490,0.24510024,3815.6,3815.5,4.041]
[1753864026884,1.18530024,3815.6,3815.5,4.041]
[1753864029200,0.24510024,3815.6,3815.5,4.041]
[1753864031808,0.71680024,3815.6,3815.5,4.041]
[1753864032509,0.24510024,3815.6,3815.5,10.29240094]
[1753864032693,0.002,3815.8,3815.6,2.62081979]
[1753864032905,0.002,3815.8,3815.7,2.6207511]
[1753864033073,0.002,3815.8,3815.7,2.7519511]
[1753864033405,0.002,3815.8,3815.7,3.6981511]
[1753864033774,0.002,3815.8,3815.7,4.5143511]
[1753864034205,0.002,3815.8,3815.7,4.54055861]
[1753864034508,0.002,3815.8,3815.7,4.5143511]
[1753864036070,0.002,3815.8,3815.7,4.0506511]
[1753864036273,0.002,3815.8,3815.7,8.0896511]
[1753864036475,0.002,3815.8,3815.7,0.1312]
[1753864036695,0.4737,3815.8,3815.7,4.039]
[1753864037240,0.002,3815.8,3815.7,4.039]
[1753864038239,0.002,3815.8,3815.7,10.26405468]
[1753864038410,0.002,3815.8,3815.7,10.72775468]
[1753864038614,0.002,3815.8,3815.7,11.49655468]
[1753864038909,0.002,3815.8,3815.7,7.92960358]
[1753864039111,0.002,3815.8,3815.7,11.03285468]
[1753864040142,0.002,3815.8,3815.7,8.41210358]
[1753864040359,0.002,3815.8,3815.7,11.03285468]
[1753864041731,0.002,3815.8,3815.7,4.8078]
[1753864041913,0.9422,3815.8,3815.7,4.038]
[1753864042561,0.9422,3815.8,3815.6,0.1312]
[1753864042837,1.0714,3815.7,3815.5,0.001]
[1753864043137,0.7687,3815.6,3815.5,0.001]
[1753864043436,1.7089,3815.6,3815.5,4.039]
[1753864045018,0.1312,3815.7,3815.5,4.039]
[1753864045330,0.9402,3815.6,3815.5,4.039]
[1753864046058,1.1850428,3815.6,3815.5,4.039]
[1753864050054,1.18493584,3815.6,3815.5,4.039]
[1753864052675,0.24473584,3815.6,3815.5,4.039]
[1753864053045,0.24473584,3815.7,3815.5,4.039]
[1753864053462,1.18803584,3815.7,3815.5,4.039]
[1753864053798,0.24473584,3815.6,3815.5,4.039]
[1753864053943,0.24473584,3815.6,3815.5,4.5175]
[1753864054283,0.24473584,3815.7,3815.5,4.039]
[1753864054582,0.24473584,3815.6,3815.5,4.039]
[1753864054876,0.24473584,3815.6,3815.5,7.63930358]
[1753864055072,0.24473584,3815.6,3815.5,8.21660358]
[1753864055277,0.002,3815.8,3815.7,2.6207511]
[1753864055573,0.002,3815.8,3815.7,2.64695861]
[1753864055952,0.002,3815.8,3815.7,3.70275861]
[1753864056150,0.24669236,3815.8,3815.7,3.70275861]
[1753864056561,0.002,3815.8,3815.7,3.70275861]
[1753864057765,0.002,3815.8,3815.7,0.63590751]
[1753864058180,0.002,3815.8,3815.7,3.25665861]
[1753864058881,0.002,3815.8,3815.7,3.70275861]
[1753864059256,0.002,3815.8,3815.7,4.03205861]
[1753864059461,0.002,3815.8,3815.7,4.4519511]
[1753864060093,0.002,3815.8,3815.7,4.47815861]
[1753864060603,0.002,3816.2,3816.1,2.6204764]
[1753864060764,0.002,3816.2,3816.1,10.70068474]
[1753864060959,0.002,3816.2,3816.1,11.59907998]
[1753864061412,0.002,3816.2,3816.1,7.56307998]
[1753864061703,0.002,3816.2,3816.1,0.8962]
[1753864061882,0.002,3816.2,3816.1,8.0301764]
[1753864062269,0.002,3816.2,3816.1,1.3747]
[1753864062584,0.002,3816.2,3816.1,4.9312]
[1753864062787,0.002,3816.2,3816.1,0.1312]
[1753864062989,0.9453,3816.2,3816.1,4.1662]
[1753864063155,0.9453,3816.2,3815.4,0.7646]
[1753864063356,0.9433,3816.1,3816.0,0.1312]
[1753864063560,0.9433,3816.1,3816.0,4.1662]
[1753864064385,0.4465,3816.1,3816.0,4.1662]
[1753864064791,0.9433,3816.1,3816.0,4.1662]
[1753864069720,0.4465,3816.1,3816.0,4.1662]
[1753864072435,0.002,3816.2,3816.0,4.1662]
[1753864074288,0.002,3816.2,3816.0,6.78671912]
[1753864075432,0.002,3816.2,3816.1,2.6204764]
[1753864075822,0.002,3816.2,3816.1,3.0989764]
[1753864076333,0.002,3816.2,3816.1,6.24698474]
[1753864076490,0.002,3816.2,3816.1,6.66687998]
[1753864076894,0.002,3816.2,3816.1,6.22077998]
[1753864077094,0.002,3816.2,3816.1,7.41487998]
[1753864080535,0.002,3816.2,3816.1,3.3708764]
[1753864080709,0.002,3816.2,3816.1,7.4028764]
[1753864082009,0.002,3816.2,3816.1,7.8676764]
[1753864083757,0.002,3816.2,3816.1,11.45787998]
[1753864085359,0.002,3816.2,3816.1,10.98947998]
[1753864086315,0.002,3816.2,3816.1,11.45787998]
[1753864088517,0.002,3816.2,3816.1,7.4028764]
[1753864088717,0.002,3816.2,3816.1,10.98947998]
[1753864090022,0.002,3816.2,3816.1,12.00787998]
[1753864091338,0.002,3816.2,3816.1,10.98947998]
[1753864092665,0.002,3816.2,3816.1,11.45787998]
[1753864093860,0.002,3816.2,3816.1,10.98947998]
[1753864095182,0.002,3816.2,3816.1,15.21947998]
[1753864099639,0.002,3816.2,3816.1,7.6008764]
[1753864099844,0.9418,3816.2,3816.1,6.8504764]
[1753864100055,0.9418,3816.2,3816.1,4.029]
[1753864100238,0.9418,3816.2,3816.1,6.6494764]
[1753864100977,0.002,3816.2,3816.1,6.6494764]
[1753864101144,0.002,3816.2,3816.1,7.9176764]
[1753864101348,0.002,3816.2,3816.1,8.3860764]
[1753864102177,0.002,3816.2,3816.1,3.4238764]
[1753864102380,0.002,3816.2,3816.1,7.4528764]
[1753864102545,0.002,3816.2,3816.1,7.9176764]
[1753864104832,0.002,3816.2,3816.1,7.4528764]
[1753864105543,0.002,3816.2,3816.1,3.4238764]
[1753864105743,0.9418,3816.2,3816.1,6.6484764]
[1753864108385,0.9418,3816.2,3816.1,4.028]
[1753864111177,1.7616,3816.2,3816.1,4.028]
[1753864111481,1.7616,3816.2,3816.0,0.1312]
[1753864111687,0.8218,3816.2,3816.0,0.1312]
[1753864111978,0.8218,3816.2,3816.1,4.028]
[1753864112152,1.7283,3816.2,3816.1,4.028]
[1753864122950,1.7283,3816.2,3816.0,0.1312]
[1753864123091,0.8218,3816.2,3816.1,4.027]
[1753864123704,1.2626,3816.2,3816.1,4.027]
[1753864123908,1.7283,3816.2,3816.1,4.027]
[1753864124891,0.9085,3816.2,3816.1,4.027]
[1753864126013,0.002,3816.2,3816.1,4.5125]
[1753864126523,0.002,3816.2,3816.1,4.027]
[1753864128850,0.9085,3816.2,3816.1,4.026]
[1753864130680,0.9085,3816.2,3816.0,0.1312]
[1753864130882,1.7377,3816.1,3815.8,0.1322]
[1753864131189,1.8689,3816.1,3815.9,4.026]
[1753864131353,0.9624,3816.1,3815.9,4.026]
[1753864131890,0.9065,3816.0,3815.9,4.026]
[1753864132341,1.15075627,3816.0,3815.9,4.026]
[1753864132786,1.97285627,3816.0,3815.9,4.026]
[1753864133677,1.97285627,3816.0,3815.8,0.001]
[1753864133982,1.28195627,3815.9,3815.8,0.001]
[1753864136786,1.28194402,3815.9,3815.8,0.001]
[1753864137670,2.08554402,3815.9,3815.8,0.001]
[1753864138857,5.08554402,3815.9,3815.8,0.001]
[1753864139081,8.25615776,3815.9,3815.8,0.001]
[1753864140386,8.25612455,3815.9,3815.8,0.001]
[1753864140748,8.40263701,3815.9,3815.8,0.001]
[1753864141503,5.78200974,3815.9,3815.8,0.001]
[1753864141801,9.91207374,3815.9,3815.8,0.001]
[1753864142693,1.28406128,3815.9,3815.8,0.001]
[1753864143101,0.48046128,3815.9,3815.8,0.4544]
[1753864143397,0.24419728,3815.9,3815.8,0.9024]
[1753864143592,0.002,3816.2,3815.8,3.52308242]
[1753864143796,0.002,3816.2,3815.8,0.001]
[1753864144087,0.002,3816.2,3815.9,1.0326]
[1753864144291,0.002,3816.2,3816.0,0.9014]
[1753864144478,0.24599381,3816.2,3816.0,0.9014]
[1753864144682,0.24599381,3816.2,3816.1,0.4534]
[1753864144683,0.002,3816.2,3816.1,0.4534]
[1753864146575,0.002,3816.2,3815.9,0.1312]
[1753864146757,0.002,3816.2,3815.9,0.5846]
[1753864146958,1.7117,3816.2,3815.8,0.001]
[1753864147184,0.1312,3816.0,3815.8,0.001]
[1753864147757,0.1312,3816.0,3815.8,0.4544]
[1753864148971,0.1312,3816.0,3815.9,0.4534]
[1753864150484,0.002,3816.2,3815.9,0.9014]
[1753864150982,0.002,3816.2,3816.1,0.8069]
[1753864151160,0.002,3816.2,3816.1,0.9381]
[1753864151360,0.002,3816.2,3816.1,4.4599764]
[1753864152198,0.002,3816.2,3816.1,1.8395]
[1753864152792,0.690117,3816.2,3815.9,4.024]
[1753864152964,0.9077,3816.2,3815.9,4.1552]
[1753864153163,0.002,3816.2,3815.9,4.1552]
[1753864153397,0.002,3816.2,3816.0,0.4534]
[1753864154060,0.002,3816.2,3815.9,4.1552]
[1753864154491,0.002,3816.2,3815.9,4.6086]
[1753864155394,0.002,3816.2,3815.9,4.1552]
[1753864155599,0.002,3816.2,3816.0,0.4534]
[1753864155963,0.002,3816.2,3816.1,0.4534]
[1753864156496,0.002,3816.2,3816.1,0.5846]
[1753864157126,0.002,3816.2,3816.1,0.1312]
[1753864157407,0.002,3816.2,3816.1,3.6530764]
[1753864158703,0.002,3816.2,3816.1,0.5846]
[1753864161174,0.002,3816.2,3816.1,1.0326]
[1753864161373,0.002,3816.2,3816.1,0.1312]
[1753864161894,0.9077,3816.2,3816.1,4.022]
[1753864162481,0.4461,3816.2,3816.1,4.022]
[1753864162915,0.002,3816.2,3816.1,4.022]
[1753864164380,0.002,3816.2,3816.1,4.4754]
[1753864165324,0.002,3816.2,3816.1,4.022]
[1753864167091,0.9077,3816.2,3816.1,4.022]
[1753864167500,0.4461,3816.2,3816.1,4.022]
[1753864167919,0.002,3816.2,3816.1,4.022]
[1753864168929,0.002,3816.2,3816.1,4.9234]
[1753864169520,0.002,3816.2,3816.1,7.5438764]
[1753864169827,0.002,3816.2,3816.1,4.4754]
[1753864170128,0.002,3816.2,3816.1,4.022]
[1753864170299,0.9077,3816.2,3816.1,4.021]
[1753864170499,0.002,3816.2,3816.1,4.6202]
[1753864176197,0.8935,3816.2,3816.1,4.1522]
[1753864176406,0.4387,3816.2,3816.1,4.1522]
[1753864176627,0.002,3816.2,3816.1,4.1522]
[1753864177229,0.002,3816.2,3816.1,7.2406764]
[1753864178449,0.002,3816.2,3816.1,11.55467998]
[1753864184141,0.002,3816.2,3816.1,11.12627998]
[1753864184954,1.71200247,3819.5,3816.1,10.65827998]
[1753864185130,3.15018066,3820.2,3819.7,2.61800664]
[1753864185438,0.04,3820.9,3820.8,2.61725293]
[1753864185639,0.04,3820.9,3820.8,5.73905651]
[1753864185851,0.04,3820.9,3820.8,2.61725293]
[1753864186367,0.04,3820.9,3820.8,5.76522903]
[1753864186500,0.04,3820.9,3820.8,5.73905651]
[1753864186699,0.04,3820.9,3820.8,6.20705651]
[1753864186900,0.04,3820.9,3820.8,3.08525293]
[1753864187330,0.04,3820.9,3820.8,3.32804562]
[1753864188410,0.04,3820.9,3820.8,3.52227354]
[1753864188532,0.04,3820.9,3820.8,0.43702061]
[1753864189480,0.04,3820.9,3820.8,0.19422792]
[1753864189848,0.04,3820.9,3820.6,0.8112]
[1753864190235,0.04,3820.9,3820.7,0.14520957]
[1753864190444,0.04,3820.9,3820.6,1.00893036]
[1753864190445,0.04,3820.9,3820.8,0.38706079]
[1753864190989,0.9315,3820.9,3820.8,0.38706079]
[1753864191329,0.9315,3820.9,3820.8,0.2420265]
[1753864192537,0.9315,3820.9,3820.6,0.19773036]
[1753864192875,0.8915,3820.8,3820.2,0.14503429]
[1753864193062,0.8915,3820.8,3820.1,0.8234]
[1753864193571,0.8915,3820.7,3820.1,0.19204106]
[1753864193732,0.8915,3820.6,3819.7,0.13360518]
[1753864194096,0.4548,3820.5,3819.6,3.52487421]
[1753864194377,0.4548,3820.5,3819.7,2.61799591]
[1753864194883,0.04,3820.9,3819.6,0.7732]
[1753864195070,0.8915,3820.8,3820.4,0.1312]
[1753864195274,0.04,3820.9,3820.6,0.1312]
[1753864195493,0.8915,3820.7,3820.6,0.1312]
[1753864197669,4.405,3821.4,3820.6,0.1312]
[1753864197670,0.4548,3822.1,3820.8,0.8072]
[1753864197982,0.4367,3822.2,3820.8,0.8072]
[1753864197983,0.4968,3821.9,3821.5,2.61675506]
[1753864198288,0.4968,3821.9,3821.6,2.61668705]
[1753864198585,0.042,3821.9,3821.8,2.6165681]
[1753864199349,0.04,3822.9,3821.8,0.8112]
[1753864199549,0.17683985,3824.9,3823.0,0.55]
[1753864199858,0.4548,3823.8,3822.9,0.8112]
[1753864200205,0.4548,3823.8,3823.2,2.61558369]
[1753864200348,0.4548,3823.8,3822.9,0.8112]
[1753864200746,0.4565,3823.7,3822.4,4.487]
[1753864200942,0.4543,3823.6,3822.4,7.10315019]
[1753864201197,0.4565,3823.5,3822.4,4.487]
[1753864201398,0.4565,3823.5,3822.6,2.61600959]
[1753864201553,0.4543,3823.4,3822.7,2.6159487]
[1753864201745,0.4543,3823.4,3822.6,2.6159863]
[1753864201951,0.4543,3823.4,3822.7,2.61595207]
[1753864202389,0.4543,3823.4,3822.8,2.6158584]
[1753864202558,0.4543,3823.4,3822.4,4.487]
[1753864202762,0.4543,3823.4,3822.8,2.61583946]
[1753864203288,0.4543,3823.4,3822.4,4.487]
[1753864203482,0.4543,3823.4,3822.8,2.61586151]
[1753864203665,0.4543,3823.4,3822.6,2.6160205]
[1753864203863,0.4565,3823.3,3822.4,4.487]
[1753864204068,0.4543,3823.2,3822.4,4.487]
[1753864204275,0.4543,3823.2,3822.6,2.61598942]
[1753864204586,0.4543,3823.2,3822.4,7.10309891]
[1753864204750,0.4543,3823.2,3822.2,4.474]
[1753864204751,1.2118,3823.1,3822.2,4.474]
[1753864204956,0.9108,3823.0,3821.6,0.7664]
[1753864205179,0.9108,3822.9,3821.7,2.61657754]
[1753864205388,0.7553,3823.1,3821.5,7.0877726]
[1753864205389,0.9108,3822.8,3821.5,7.0877726]
[1753864205690,3.37099291,3823.1,3821.5,4.471]
[1753864205691,0.9108,3822.7,3821.5,4.471]
[1753864205917,0.9108,3822.6,3821.5,4.471]
[1753864206060,0.9108,3822.5,3821.5,4.471]
[1753864206591,0.9108,3822.5,3821.7,2.61662476]
[1753864206778,0.9108,3822.5,3821.5,4.471]
[1753864207102,0.7553,3823.1,3821.5,4.471]
[1753864207103,0.9108,3822.4,3821.5,4.471]
[1753864207265,0.7553,3823.1,3821.5,4.471]
[1753864207266,0.55,3823.0,3821.5,4.471]
[1753864207474,0.7857,3822.2,3821.5,4.471]
[1753864207674,0.7857,3822.2,3821.1,0.04]
[1753864207675,0.4565,3822.1,3821.1,2.65698428]
[1753864207874,1.042,3822.1,3821.6,0.1312]
[1753864208101,0.4543,3822.1,3821.2,0.1312]
[1753864208396,0.1312,3821.7,3821.2,0.1312]
[1753864208773,0.9108,3821.6,3821.2,0.1312]
[1753864208978,0.1312,3821.7,3821.2,0.1312]
[1753864209182,0.9108,3821.5,3821.2,0.1312]
[1753864209377,0.9108,3821.4,3821.2,0.1312]
[1753864209988,0.9108,3821.3,3821.2,0.1312]
[1753864210662,0.9108,3821.3,3821.1,0.04]
[1753864210862,0.9108,3821.2,3821.1,0.04]
[1753864211282,1.7234,3821.2,3821.1,0.04]
[1753864211609,1.8546,3821.2,3821.1,0.04]
[1753864214580,2.09829551,3821.2,3821.1,0.04]
[1753864216378,1.05629551,3821.2,3821.1,0.04]
[1753864216584,0.24369551,3821.2,3821.1,0.04]
[1753864218102,0.69799551,3821.2,3821.1,0.04]
[1753864218435,1.15449551,3821.2,3821.1,0.04]
[1753864218642,1.15451606,3821.2,3821.1,0.04]
[1753864221129,1.28571606,3821.2,3821.1,0.04]
[1753864224012,0.24371606,3821.2,3821.1,0.04]
[1753864224212,0.37491606,3821.4,3821.1,0.04]
[1753864224431,0.24371606,3821.3,3821.1,0.04]
[1753864224732,0.24371606,3821.2,3821.1,0.04]
[1753864225157,3.0,3821.5,3821.1,0.5272]
[1753864225357,0.24365785,3821.4,3821.2,0.4872]
[1753864225926,0.24365785,3821.4,3821.1,0.1722]
[1753864226329,0.24365785,3821.4,3821.2,0.4872]
[1753864226629,0.5,3821.6,3821.3,0.1312]
[1753864226828,0.24373042,3821.5,3821.3,0.9182]
[1753864227032,0.24373042,3821.5,3821.4,0.9182]
[1753864227233,0.24373042,3821.5,3821.4,1.0494]
[1753864227433,0.24373042,3821.5,3821.4,0.6184]
[1753864228247,0.5,3821.6,3821.4,0.6184]
[1753864228449,0.5,3821.6,3821.4,3.66623098]
[1753864228661,0.5,3821.6,3821.5,3.10397351]
[1753864228975,0.5,3821.6,3821.5,4.35477351]
[1753864229476,0.5,3821.6,3821.5,14.0201986]
[1753864231340,0.5,3821.6,3821.5,8.31277351]
[1753864231683,0.5,3821.6,3821.5,5.2048]
[1753864231879,0.5,3821.6,3821.5,7.82157351]
[1753864232477,0.5,3821.6,3821.5,5.2048]
[1753864232682,0.5,3821.6,3821.5,7.82157351]
[1753864232883,0.5,3821.6,3821.5,7.81857351]
[1753864233191,0.5,3821.6,3821.5,8.29687351]
[1753864233484,0.5,3821.6,3821.5,8.72787351]
[1753864235784,0.5,3821.6,3821.5,14.0042986]
[1753864235992,1.7241,3823.3,3822.7,2.61589374]
[1753864236150,0.2442947,3823.2,3822.8,6.98386014]
[1753864236354,0.2442947,3823.2,3823.1,0.1304]
[1753864236549,1.1922947,3823.2,3823.1,0.1304]
[1753864236754,0.948,3823.2,3823.1,0.1304]
[1753864237074,1.09458772,3823.2,3823.1,0.1304]
[1753864238394,0.948,3823.2,3823.1,0.1304]
[1753864239256,0.4936,3823.7,3823.1,0.1304]
[1753864239458,0.4936,3823.7,3823.3,0.1304]
[1753864240074,0.4936,3823.7,3823.3,0.15655541]
[1753864240367,0.002,3823.8,3823.3,0.15655541]
[1753864240570,0.002,3823.8,3823.3,3.99964154]
[1753864241167,0.002,3823.8,3823.3,1.3841]
[1753864241351,0.002,3823.8,3823.3,0.9058]
[1753864241552,0.002,3823.8,3823.3,3.52134154]
[1753864241780,0.002,3823.8,3823.3,0.9058]
[1753864241953,0.002,3823.8,3823.3,1.3841]
[1753864242154,0.002,3823.8,3823.3,0.9058]
[1753864242374,0.002,3823.8,3823.3,3.52134154]
[1753864242568,0.002,3823.8,3823.3,0.9058]
[1753864242768,0.4564,3823.4,3823.3,4.4784]
[1753864242999,0.95,3823.4,3823.3,4.4784]
[1753864243728,0.95,3823.4,3822.4,0.7523]
[1753864243886,0.948,3823.3,3823.1,0.1304]